Cogmind - Beta 9.1 @@@ ROGUE MODE // 2019.11.08 @ 11:35:05 Player: Fleshy Vegetable Bird Result: Destroyed by Y-45 Defender with Heavy Assault Rifle Performance ------------- Evolutions (2) 1000 Regions Visited (5) 1000 Robots Destroyed (73) 365 Value Destroyed (1451) 1451 Prototype IDs (4) 80 Alien Tech Used (0) 0 Bonus (-889) -889 TOTAL SCORE: 3007 Bonus ------- High Alert Combat Kills 33 Follower Combat Kills 85 Friendly Fire -1007 Cogmind --------- Core Integrity 0/550 Matter 52/300 Energy 100/100 System Corruption 0% Temperature Cool (9) Location -8/Materials Parts ------- Power (1) Propulsion (3) Utility (5) High-capacity Storage Unit High-capacity Storage Unit Hacking Suite Weapon (2) Inventory (20) Medium Storage Unit Large Storage Unit YI-UF0's Bottomless Matter Pit (49) Advanced Visual Processing Unit Improved Sensor Array Advanced Signal Interpreter Particle Charger Improved ECM Suite Improved Propulsion Shielding Improved Light Armor Plating Hacking Suite Hacking Suite Heavy Explosive Trap Heavy Explosive Trap Peak State ------------ Power Light Nuclear Core Propulsion Wheel Wheel Compact Wheel Utility High-capacity Storage Unit High-capacity Storage Unit Improved Targeting Computer Medium Armor Plating Hacking Suite Weapon Precision Beam Rifle Grenade Launcher Inventory Improved Hover Unit Advanced Heat Sink Medium Storage Unit Large Storage Unit YI-UF0's Bottomless Matter Pit Weight Redist. System Advanced Visual Processing Unit Improved Sensor Array Particle Charger Improved ECM Suite Improved ECM Suite Improved Propulsion Shielding Improved Propulsion Shielding Medium Armor Plating Hacking Suite EM Pulse Gun Assault Rifle Heavy Explosive Trap Heavy Explosive Trap [Rating: 25] Favorites ----------- Power Nuclear Core Engine Ion Engine Power Core Nuclear Core Propulsion Wheel Wheel Wheel Hover Unit Hover Unit Utility Large Storage Unit Device Weight Redist. System Storage Large Storage Unit Processor Improved Targeting Computer Hackware Hacking Suite Protection Medium Armor Plating Weapon Assault Rifle Energy Gun Precision Beam Rifle Ballistic Gun Assault Rifle Ballistic Cannon Assault Cannon Launcher Grenade Launcher Build | -11 -10 -10 -10 -9 -8 ------- Run | Scr Mat Min Exi Min Mat Slots Evolved 4 | . . . . . 4 Power . | . . . . . . Propulsion 1 | . . . . . 1 Utility 3 | . . . . . 3 Weapon . | . . . . . . Parts Attached 49 | 5 13 6 . 2 23 Power 5 | 1 1 1 . 1 1 Engine 2 | 1 1 . . . . Core 3 | . . 1 . 1 1 Reactor . | . . . . . . Propulsion 14 | 2 2 4 . . 6 Treads . | . . . . . . Leg . | . . . . . . Wheel 12 | 2 2 4 . . 4 Hover 2 | . . . . . 2 Flight . | . . . . . . Utility 11 | 1 2 . . . 8 Device 1 | . . . . . 1 Storage 6 | 1 2 . . . 3 Processor 1 | . . . . . 1 Hackware 1 | . . . . . 1 Protection 2 | . . . . . 2 Artifact . | . . . . . . Weapon 19 | 1 8 1 . 1 8 Energy Gun 5 | 1 . . . . 4 Energy Cannon . | . . . . . . Ballistic Gun 7 | . 6 1 . . . Ballistic Cannon 1 | . . . . . 1 Launcher 6 | . 2 . . 1 3 Special Weapon . | . . . . . . Impact Weapon . | . . . . . . Slashing Weapon . | . . . . . . Piercing Weapon . | . . . . . . Special Melee Weapon . | . . . . . . Unidentified Prototypes 2 | . . . . . 2 Parts Lost 23 | . 5 1 . 2 15 Power 3 | . 1 . . 1 1 Propulsion 8 | . 2 . . . 6 Utility 4 | . . . . . 4 Weapon 8 | . 2 1 . 1 4 Highest Loss Streak 8 | . 2 1 . 2 8 Average Slot Usage (%) 91 | . 98 99 100 87 70 Engine 4 | . 13 1 . . . Core 7 | . . 12 14 12 5 Wheel 24 | . 27 28 28 28 13 Storage 25 | . 27 28 28 28 18 Processor 1 | . . . . . 5 Hackware 2 | . . . . . 8 Protection 1 | . . . . . 5 Energy Gun 2 | . 3 . . . 6 Ballistic Gun 18 | . 23 27 28 4 . Launcher 2 | . . . . 12 3 Naked Turns . | . . . . . . Heaviest Build 84 | 10 42 43 43 44 84 Greatest Support 36 | 32 32 20 20 20 36 Greatest Overweight (x) 23 | . 2 2 2 2 23 Average Overweight (x) 1 | . 1 2 2 1 3 Largest Inventory Capacity 20 | 6 16 16 16 16 20 Average Capacity 16 | 5 15 16 16 16 19 Most Carried 20 | 6 16 16 16 16 20 Average Carried 15 | 3 14 15 16 15 17 Final Capacity 20 | 6 16 16 16 16 20 Final Carried 16 | 6 16 16 16 15 14 Class Distribution -------------------- 75% | Mutant 14% | Hauler-Mutant 9% | Scavenger-Mutant Dominant Class ---------------- Mutant | -10/Materials Mutant | -10/Mines Mutant | -10/Exiles Mutant | -9/Mines Hauler-Mutant | -8/Materials Resources | -11 -10 -10 -10 -9 -8 ----------- Run | Scr Mat Min Exi Min Mat Matter Collected 1431 | 250 351 334 . 162 334 Remotely . | . . . . . . Salvage Created 1874 | 141 577 318 . 140 698 Parts 134 | 6 37 24 . 16 51 Haulers Intercepted 3 | . 2 . . . 1 Recyclers Shooed 1 | . . . . . 1 Parts Field Recycled . | . . . . . . Retrieved Matter . | . . . . . . Parts Self-Destructed . | . . . . . . Prevented . | . . . . . . Kills | -11 -10 -10 -10 -9 -8 ------- Run | Scr Mat Min Exi Min Mat Combat Hostiles Destroyed 46 | . 12 4 . 12 18 Guns 23 | . 12 4 . 1 6 Cannons 3 | . . . . . 3 AOE 20 | . . . . 11 9 Classes Destroyed 13 | 2 4 2 . 1 4 Worker 3 | . . 1 . . 2 Builder 3 | . . . . . 3 Tunneler 8 | 3 1 2 . 1 1 Hauler 3 | . 2 . . . 1 Recycler 4 | 1 . 1 . . 2 Operator 3 | . 2 . . . 1 Watcher 2 | . . . . . 2 Swarmer 20 | . 3 2 . 7 8 Grunt 22 | . 9 1 . 4 8 Brawler 1 | . . . . . 1 Duelist 1 | . . . . 1 . Sentry 1 | . . . . . 1 Assembled 1 | . . 1 . . . Best Kill Streak 9 | 3 3 2 . 4 9 Combat Bots Only 8 | . 3 2 . 4 8 Max Kills in Single Turn 4 | 1 1 1 . 2 4 Gunslinging . | . . . . . . Exploded 2 | . . . . 2 2 Melee . | . . . . . . Uniques/NPCs Destroyed 1 | . . 1 . . . YI-UF0 (-10/Mines) Combat | -11 -10 -10 -10 -9 -8 -------- Run | Scr Mat Min Exi Min Mat Damage Taken 3083 | . 582 378 . 274 1849 Core 809 | . 118 61 . 63 567 Absorbed by Shields . | . . . . . . Core Remaining (%) 51 | 100 . . . 3 . Volleys Fired 223 | 20 54 42 . 18 89 Largest 2 | 1 2 2 . 2 2 Hottest 101 | 40 60 40 . 50 101 Shots Fired 338 | 20 101 81 . 23 113 Gun 270 | 20 99 81 . 7 63 Cannon 36 | . . . . . 36 Launcher 32 | . 2 . . 16 14 Special . | . . . . . . Kinetic 213 | . 89 81 . 7 36 Thermal 69 | 20 10 . . . 39 Explosive 32 | . 2 . . 16 14 Electromagnetic 24 | . . . . . 24 Robot Hit Streak 12 | 7 12 9 . 11 11 Robot Miss Streak 6 | 2 6 5 . 1 3 Penetration Max . | . . . . . . Secondary Targets 2 | . 2 . . . . Max Gunslinging Chain 1 | . 1 . . . . Shots Hit Robots 209 | 15 60 44 . 10 80 Core Hits 117 | 5 28 14 . 22 48 Critical Hits 2 | . . 2 . . . Critical Kills 1 | . . 1 . . . Critical Parts Destroyed 1 | . . 1 . . . Melee Attacks . | . . . . . . Impact . | . . . . . . Slashing . | . . . . . . Piercing . | . . . . . . Sneak Attacks . | . . . . . . Combat Hostiles . | . . . . . . Follow-up Attacks . | . . . . . . Damage Inflicted 5111 | 185 800 483 . 1028 2615 Guns 2231 | 185 790 483 . 51 722 Cannons 579 | . . . . . 579 Explosions 2292 | . 2 . . 977 1313 Melee . | . . . . . . Ramming 9 | . 8 . . . 1 Kinetic 1816 | . 703 483 . 51 579 Thermal 898 | 185 87 . . . 626 Explosive 2177 | . 2 . . 977 1198 Electromagnetic 211 | . . . . . 211 Impact . | . . . . . . Slashing . | . . . . . . Piercing . | . . . . . . Highest Corruption . | . . . . . . Average Corruption . | . . . . . . Corruption Purged . | . . . . . . Overload Shots . | . . . . . . Overflow Damage 86 | . . . . 34 52 Projectiles 29 | . . . . . 29 Explosions 57 | . . . . 34 23 Melee . | . . . . . . Knockbacks 13 | . . . . . 13 Impact . | . . . . . . Kinetic 13 | . . . . . 13 Secondary . | . . . . . . Self-Inflicted Damage 94 | . 4 . . 52 38 Shots 5 | . . . . 3 2 Rammed 4 | . 1 . . . 3 Targets Rammed 4 | . 1 . . . 3 Kicked . | . . . . . . Crushed . | . . . . . . Highest Temperature 223 | . 99 16 . 13 223 Average Temperature 67 | . 46 3 . 6 78 Received Heat Transfer 1236 | . 258 132 . 54 792 Siege Activations . | . . . . . . Robots Corrupted . | . . . . . . Combat Hostiles . | . . . . . . Parts Fried . | . . . . . . Impact Corruptions . | . . . . . . Robots Melted . | . . . . . . Combat Hostiles . | . . . . . . Parts Melted 3 | . 2 . . . 1 Heat Transferred 1885 | 425 200 . . . 1260 Parts Sabotaged . | . . . . . . Parts Stolen . | . . . . . . Parts Stripped . | . . . . . . Power Chain Reactions 2 | . . . . . 2 Missiles Intercepted . | . . . . . . Alert | -11 -10 -10 -10 -9 -8 ------- Run | Scr Mat Min Exi Min Mat Peak Influence 472 | 20 205 165 . 265 472 Average Influence 133 | 8 92 78 . 159 263 Maximum Alert Level 2 | . 1 . . 1 2 Low Security (%) 80 | . . . . . . Level 1 12 | . . . . . . Level 2 6 | . . . . . . Level 3 . | . . . . . . Level 4 . | . . . . . . Level 5 . | . . . . . . High Security . | . . . . . . Max Security . | . . . . . . Squads Dispatched 5 | . 3 . . . 2 Investigation 2 | . 2 . . . . Extermination . | . . . . . . Reinforcement 3 | . 1 . . . 2 Assault . | . . . . . . Garrison . | . . . . . . Intercept . | . . . . . . Construction Impeded 1 | . . . . . 1 Haulers Reinforced . | . . . . . . Stealth | -11 -10 -10 -10 -9 -8 --------- Run | Scr Mat Min Exi Min Mat Distress Signals 4 | . 2 . . . 2 Communications Jammed . | . . . . . . Distress Signals . | . . . . . . Times Spotted 78 | . 25 14 . 13 26 Peak Tracking Total 6 | . 4 3 . 4 6 Tactical Retreats 7 | . . 3 . 1 3 Traps | -11 -10 -10 -10 -9 -8 ------- Run | Scr Mat Min Exi Min Mat Traps Triggered 1 | . 1 . . . . Indirectly . | . . . . . . Trap Hack Attempts . | . . . . . . Triggered . | . . . . . . Disarmed . | . . . . . . Reprogrammed . | . . . . . . Reused . | . . . . . . Traps Extracted . | . . . . . . Installed . | . . . . . . Triggered . | . . . . . . Machines | -11 -10 -10 -10 -9 -8 ---------- Run | Scr Mat Min Exi Min Mat Machines Disabled 4 | . 2 . . . 2 Max in Single Turn 1 | . 1 . . . 1 Garrison Access 1 | . . . . . 1 Machines Sabotaged . | . . . . . . Garrisons Compromised . | . . . . . . Overloaded Fab Kills . | . . . . . . Fab Network Shutdowns . | . . . . . . Hacking | -11 -10 -10 -10 -9 -8 --------- Run | Scr Mat Min Exi Min Mat Machines Accessed 10 | . 8 1 . . 1 Terminals 7 | . 7 . . . . Fabricators . | . . . . . . Repair Stations . | . . . . . . Recycling Units 1 | . 1 . . . . Scanalyzers . | . . . . . . Garrison Access 1 | . . . . . 1 Total Hacks 20 | . 18 1 . . 1 Successful 13 | . 11 1 . . 1 Failed 7 | . 7 . . . . Catastrophic . | . . . . . . Database Lockouts . | . . . . . . Manual 16 | . 16 . . . . Terminals 17 | . 17 . . . . Fabricators . | . . . . . . Repair Stations . | . . . . . . Recycling Units 1 | . 1 . . . . Scanalyzers . | . . . . . . Garrison Access 1 | . . . . . 1 Terminal Hacks 4 | . 3 1 . . . Part Schematic 1 | . 1 . . . . Prototype ID Bank 1 | . 1 . . . . Open Door 1 | . . 1 . . . Terminal Index 1 | . 1 . . . . Fabricator Hacks . | . . . . . . Repair Station Hacks . | . . . . . . Recycling Unit Hacks . | . . . . . . Scanalyzer . | . . . . . . Garrison Access Hacks 1 | . . . . . 1 Seal Access 1 | . . . . . 1 Unauthorized Hacks 20 | . 20 . . . . Terminals 7 | . 7 . . . . Track 1 | . 1 . . . . Assimilate 1 | . 1 . . . . Botnet 4 | . 4 . . . . Operators 1 | . 1 . . . . Fabricators . | . . . . . . Repair Stations . | . . . . . . Recycling Units 1 | . 1 . . . . Tunnel 1 | . 1 . . . . Scanalyzers . | . . . . . . Garrison Access . | . . . . . . Data Cores Recovered 1 | . 1 . . . . Used . | . . . . . . Hacking Detections 5 | . 5 . . . . Full Trace Events . | . . . . . . Feedback Events . | . . . . . . Feedback Blocked . | . . . . . . Robot Schematics Acquired . | . . . . . . Robots Built . | . . . . . . Matter . | . . . . . . Time . | . . . . . . Total Robot Build Rating . | . . . . . . Part Schematics Acquired 1 | . 1 . . . . Parts Built . | . . . . . . Matter . | . . . . . . Time . | . . . . . . Total Part Build Rating . | . . . . . . Parts Repaired . | . . . . . . Time . | . . . . . . Parts Recycled . | . . . . . . Recycled Matter . | . . . . . . Retrieved Matter . | . . . . . . Retrieved Components . | . . . . . . Parts Scanalyzed . | . . . . . . Part Schematics Acquired . | . . . . . . Parts Damaged . | . . . . . . Bothacking | -11 -10 -10 -10 -9 -8 ------------ Run | Scr Mat Min Exi Min Mat Used RIF Installer . | . . . . . . Robots Hacked . | . . . . . . Non-combat . | . . . . . . Combat . | . . . . . . Robot Hacks Applied . | . . . . . . Relay Couplers Released . | . . . . . . Robots Rewired . | . . . . . . Allies Hacked . | . . . . . . Hacks Repelled . | . . . . . . Allies | -11 -10 -10 -10 -9 -8 -------- Run | Scr Mat Min Exi Min Mat Total Allies 4 | . . 4 . . . Largest Group 3 | . . 3 2 2 . Highest-Rated Group 63 | . . 63 32 32 . Highest-Rated Ally 31 | . . 31 16 16 . Total Orders . | . . . . . . Ally Attacks 28 | . . 23 . 5 . Total Damage 307 | . . 271 . 36 . Kills 9 | . . 9 . . . Allies Corrupted . | . . . . . . Allies Melted . | . . . . . . Intel | -11 -10 -10 -10 -9 -8 ------- Run | Scr Mat Min Exi Min Mat Robot Analysis Total . | . . . . . . Derelict Logs Recovered 1 | . . 1 . . . Drone Launches . | . . . . . . Drone Recoveries . | . . . . . . Exploration | -11 -10 -10 -10 -9 -8 ------------- Run | Scr Mat Min Exi Min Mat Turns Passed 3527 | 112 921 1196 208 230 860 Spaces Moved 2223 | 50 601 838 204 202 328 Core 36 | 5 . . . . 31 Treads . | . . . . . . Legs . | . . . . . . Wheels 2176 | 45 601 838 204 202 286 Hover 11 | . . . . . 11 Flight . | . . . . . . Fastest Speed 50 | 50 100 100 100 90 100 Average Speed 108 | 95 103 100 100 91 157 Slowest Speed 1200 | 100 110 100 100 100 1200 Overloaded Moves . | . . . . . . Propulsion Burnouts . | . . . . . . Robots Hopped . | . . . . . . Cave-ins Triggered . | . . . . . . Exploration Rate (%) 55 | 5 92 99 60 48 28 Regions Visited 5 Branch Regions 3 Pre-discovered Areas 2 | . 1 1 . . . Known Exits Taken . | . . . . . . Unknown Exits Taken 5 | 1 1 1 1 1 . Scrap Searched 4 | . . 2 . 2 . Spaces Dug 15 | . 4 . . . 11 Terrain Destroyed 285 | . 10 . . 124 151 Melee . | . . . . . . Projectile 6 | . . . . . 6 AOE 279 | . 10 . . 124 145 Actions | -11 -10 -10 -10 -9 -8 --------- Run | Scr Mat Min Exi Min Mat Total 2972 | 94 798 1120 208 222 530 Wait 387 | 9 109 210 5 1 53 Move 2218 | 49 600 837 203 201 328 Hop . | . . . . . . Pick Up 65 | 11 19 13 . . 22 Fast Attach . | . . . . . . Attach 27 | 5 7 1 . 1 13 Detach 1 | . . . . . 1 Swap 22 | . 6 5 . 1 10 Drop 25 | . 2 12 . . 11 Fire 223 | 20 54 42 . 18 89 Melee . | . . . . . . Ram 4 | . 1 . . . 3 Kick . | . . . . . . Crush . | . . . . . . Escape Stasis . | . . . . . . Rewire . | . . . . . . Trap . | . . . . . . Miscellaneous . | . . . . . . Route ------- -11/Scrapyard -10/Materials (discovered 5 exits: [*Mat x3] / *Min x2) -10/Mines (discovered 3 exits: [*Mat x2] / [*Exi]) -10/Exiles (discovered 2 exits: [*Min x2]) -9/Mines -8/Materials History --------- Turn | Location | Event 27 | -11/Scrapyard | Discovered new exit (range 12) 113 | -11/Scrapyard | Entered Materials 239 | -10/Materials | Discovered new exit (range 10) 315 | -10/Materials | Build established: Mutant 383 | -10/Materials | Discovered new exit (range 7) 474 | -10/Materials | Discovered new exit (range 14) 861 | -10/Materials | Discovered new exit (range 13) 886 | -10/Materials | Discovered new exit (range 15) 1034 | -10/Materials | Entered Mines 1077 | -10/Mines | Assisted by bots powering up and referring to "LRC-V3" 1113 | -10/Mines | Destroyed YI-UF0 1123 | -10/Mines | Found Prototype Storage 1163 | -10/Mines | Met a Derelict who couldn't figure out how to use a Trap Extractor 1235 | -10/Mines | Excavation squad dispatched 1235 | -10/Mines | A large section of the Mines collapsed 1358 | -10/Mines | Core integrity fell below 50% 1436 | -10/Mines | Discovered new exit (range 6) 1446 | -10/Mines | Assisted by bots powering up and referring to "LRC-V3" 1471 | -10/Mines | Learned location of Storage (-9) 1565 | -10/Mines | Deemed a non-threat by the Exiles lab entrance 1712 | -10/Mines | Found a hidden stash of uninstalled traps 1910 | -10/Mines | Received a Mining Laser from a helpful Derelict 1928 | -10/Mines | Discovered new exit (range 6) 2199 | -10/Mines | Discovered new exit (range 5) 2230 | -10/Mines | Entered Exiles 2230 | -10/Exiles | Accompanied by 3 allies 2243 | -10/Exiles | Discovered new exit (range 15) 2257 | -10/Exiles | Met 8R-AWN 2270 | -10/Exiles | Met EX-HEX 2340 | -10/Exiles | Met EX-DEC 2421 | -10/Exiles | Discovered new exit (range 14) 2438 | -10/Exiles | Entered Mines 2438 | -9/Mines | Accompanied by 2 allies 2447 | -9/Mines | Core integrity fell below 20% 2661 | -9/Mines | Discovered new exit (range 10) 2668 | -9/Mines | Entered Materials 2668 | -8/Materials | Evolved 4 slots: Propulsion x1, Utility x3 2668 | -8/Materials | Identified YI-UF0's Bottomless Matter Pit 3176 | -8/Materials | Destroyed 8 combat bots 3223 | -8/Materials | Lost 8 parts (1p3n3u1w) 3431 | -8/Materials | Build established: Hauler-Mutant 3436 | -8/Materials | Core integrity fell below 50% 3506 | -8/Materials | Core integrity fell below 20% 3528 | -8/Materials | Destroyed by Y-45 Defender with Heavy Assault Rifle Last Messages --------------- 03398_ R-06 Scavenger collects Aluminum Leg. 03417_ Missile Launcher destroyed. 03418_ The unstable cave ceiling collapses. 03420_ Atomic Centrifuge disabled. 03422_ Acquired 33 matter. 03426_ K-01 Serf collects debris. 03429_ The unstable cave ceiling collapses. 03433_ Acquired 8 matter. 03433_ K-01 Serf collects debris. 03436_ The unstable cave ceiling collapses. 03436_ K-01 Serf cleans the Nuclear Reactor. 03443_ K-01 Serf collects debris. 03452_ The unstable cave ceiling collapses. 03454_ K-01 Serf collects debris. 03471_ Imp. Hover Unit destroyed. 03483_ Hover Unit destroyed. 03498_ Slammed into Y-45 Defender. 03518_ Processing Tank disabled. 03520_ Slammed into Y-45 Defender. 03520_ Destabilizing: Core damaged (-5). Map ----- +----------------------------------------------------+ | ????????????????????????? ???????????? | | ???????????????????????? ?????????? | | ???????????????????????? #?????????? | | ???????????????##??##### #?????????? | | ??????! #???? ?? # #?????????? | | ?????? ## ???? # #?#???????? | | ?????? ?????"" """ # #? ???????? | | ?????? ?#????" """ # # """?????? | | ######### #????? """ # # """?????? | | %% #????? + + """ ????? | | #######%####?????? # # ??????? | | ??? ??#=#??#?????### ########?? | | ??## ##%#? ?#????# ## #?? | | ??# # # # #??### #?? | | ???# # ######## """ ??? | | ???# # # ## ## # """ #?? | | ???#### # ## # r " #?? | | ??????# # # # #! #?? | | ??????# # ########### ###??#####?? | | ??????# # #?????????# #??????????? | | ??????# ## ##?????????# #??????????? | | ?######+## #??????????# #??????????? | | ?# + #??????????# #??????????? | | ?# # #??????????# #??????????? | | ?# # #??????????# #??????????? | | ?# # #??????#####@####???????? | | ?# # #??????# Y #???????? | | ?#####"### +??????# "" "" #???????? | | ?????##??# #??????# """"" #???????? | | ?????????# ??????# """"" #???????? | | ?????????# ?????# #???????? | | ?????????# ?????+ """"" #???????? | | ?????????# ????# """"" #???????? | | ?????????## """????# """"" #???????? | | ??????????# """??????????? #???????? | | ??????????? "?????????????###???????? | | ??????????? ???????????????????????? | | ??????????? ???????????????????????? | | ??????????? ????????????????????????? | | ?????????????????????????????????????? | | ?????????????????????????????????????? | | ?????????????????????????????????????? | | ?????????????????????????????????????? | | ?????????????????????????????????????? | | ?????????????????????????????????????? | | ?????????????????????????????????????? | | ?????????????????????????????????????? | | ?????????????????????????????????????? | | ?????????????????????????????????????? | | ?????????????????????????????????????? | +----------------------------------------------------+ Best States ------------- Heat Dissipation 31 Energy Generation 14 Energy Capacity 250 Matter Stores 300 Matter Capacity 300 Sight Range 16 Terrain Scan Density 10 Additional Mass Support 6 Armor Coverage 225 Evasion (%) 42 Targeting Accuracy 6 Offensive Hacking 10 Item Schematics ----------------- Hcp. Storage Unit | -10/Materials | Hacked Robot Schematics ------------------ None Fabricated ------------ Nothing Alien Tech Used ----------------- None Achievements -------------- None Challenges ------------ None Game ------ Seed RestorationOverloadDiverter Manual? 0 Play Time 00:28:12 Cumulative 158.1 hours Start 2019.11.08 @ 11:06:59 End 2019.11.08 @ 11:35:05 Sessions 1 Manual Loads 0 Difficulty Rogue Special Mode None Game No. 227 Rogue 227 Adventurer 0 Explorer 0 Win Type - Total 1 Types 1/0/0/0/0/0/0 Lore% 38 Gallery% 66 Achievement% 40 Wizard Run 0 Options --------- ASCII 0 Keyboard 0 Movement Numpad Keybinds 0 Fullscreen 1 Font 16/Terminus Map View 75x55 Tactical HUD 1 Map Filters NONE Filters NONE Steam 1 RUN: d48cf7f5-ebaf-4f3a-b07f-fccf43df01c0